fUSD/lending_fUSD_20240322
["ID","MTS","AMOUNT","RATE_DAILY","PERIOD"]
[320077846,1711139451974,-1126.22,0.00021917,2]
[320077847,1711139451984,-2856.72,0.00021917,2]
[320077848,1711139451994,-500.0,0.00021917,2]
[320077849,1711139452004,-500.0,0.00021917,2]
[320077850,1711139452015,-500.0,0.00021917,2]
[320077851,1711139452025,-726.52,0.00021917,2]
[320077852,1711139452034,-500.0,0.00021917,2]
[320077853,1711139452044,-500.0,0.00021917,2]
[320077854,1711139452054,-1123.15,0.00021917,2]
[320077855,1711139452064,-500.0,0.00021917,2]
[320077856,1711139452073,-3250.78,0.00021917,2]
[320077857,1711139452084,-646.01565965,0.00021917,2]
[320077858,1711139452095,-1374.63,0.00021917,2]
[320077859,1711139452105,-500.0,0.00021917,2]
[320077860,1711139452115,-1580.05,0.00021917,2]
[320077861,1711139452125,-500.0,0.00021917,2]
[320077862,1711139452134,-500.0,0.00021917,2]
[320077863,1711139452144,-500.0,0.00021917,2]
[320077864,1711139452155,-2031.5,0.00021917,2]
[320077865,1711139452166,-500.0,0.00021917,2]
[320077866,1711139452175,-500.0,0.00021917,2]
[320077867,1711139452506,-500.0,0.00021917,2]
[320077868,1711139452516,-3873.9,0.00021917,2]
[320077869,1711139452525,-52091.15,0.00021917,2]
[320077870,1711139452534,-406.09284164,0.00021917,2]
[320077871,1711139452545,-894.93,0.00021917,2]
[320077872,1711139452553,-1694.22,0.00021917,2]
[320077873,1711139452563,-500.0,0.00021917,2]
[320077874,1711139452573,-500.0,0.00021917,2]
[320077875,1711139452586,-500.0,0.00021917,2]
[320077876,1711139452595,-500.0,0.00021917,2]
[320077877,1711139452605,-500.0,0.00021917,2]
[320077878,1711139452614,-1019.05,0.00021917,2]
[320077879,1711139452624,-644.62,0.00021917,2]
[320077880,1711139452633,-500.0,0.00021917,2]
[320077881,1711139452643,-2149.55,0.00021917,2]
[320077882,1711139452652,-337.87906445,0.00021917,2]
[320077883,1711139452661,-1787.59,0.00021917,2]
[320077884,1711139452671,-3163.73,0.00021917,2]
[320077885,1711139452680,-515.09653009,0.00021917,2]
[320077886,1711139452689,-1644.34,0.00021917,2]
[320077887,1711139452700,-500.0,0.00021917,2]
[320077888,1711139452710,-1266.34,0.00021917,2]
[320077889,1711139452720,-13902.85,0.00021917,2]
[320077890,1711139452731,-500.0,0.00021917,2]
[320077891,1711139452744,-500.0,0.00021917,2]
[320077892,1711139452753,-1124.78,0.00021917,2]
[320077893,1711139452763,-1006.42,0.00021917,2]
[320077894,1711139452773,-500.0,0.00021917,2]
[320077895,1711139452783,-736.92,0.00021917,2]
[320077896,1711139452793,-500.0,0.00021917,2]
[320077897,1711139452803,-500.0,0.00021917,2]
[320077898,1711139452814,-502.9295828,0.00021917,2]
[320077899,1711139452825,-1100.56,0.00021917,2]
[320077900,1711139452835,-1580.52,0.00021917,2]
[320077901,1711139452844,-500.0,0.00021917,2]
[320077902,1711139452854,-530.98,0.00021917,2]
[320077903,1711139452864,-1321.98,0.00021917,2]
[320077904,1711139452873,-1643.02,0.00021917,2]
[320077905,1711139452883,-501.55979649,0.00021917,2]
[320077906,1711139452893,-500.0,0.00021917,2]
[320077907,1711139452903,-3118.01,0.00021917,2]
[320077908,1711139452912,-1303.59,0.00021917,2]
[320077909,1711139452922,-500.0,0.00021917,2]
[320077910,1711139452932,-869.66,0.00021917,2]
[320077911,1711139452942,-1519.6,0.00021917,2]
[320077912,1711139452951,-500.0,0.00021917,2]
[320077913,1711139452961,-500.0,0.00021917,2]
[320077914,1711139452971,-500.0,0.00021917,2]
[320077915,1711139452980,-500.0,0.00021917,2]
[320077916,1711139452991,-1879.7,0.00021917,2]
[320077917,1711139453002,-500.0,0.00021917,2]
[320077918,1711139453012,-500.0,0.00021917,2]
[320077919,1711139453021,-500.0,0.00021917,2]
[320077920,1711139453031,-968.97,0.00021917,2]
[320077921,1711139453041,-1324.46,0.00021917,2]
[320077922,1711139453050,-672.73,0.00021917,2]
[320077923,1711139453060,-500.0,0.00021917,2]
[320077924,1711139453070,-3495.88,0.00021917,2]
[320077925,1711139453080,-706.88,0.00021917,2]
[320077926,1711139453089,-500.0,0.00021917,2]
[320077927,1711139453099,-737.16,0.00021917,2]
[320077928,1711139453109,-500.0,0.00021917,2]
[320077929,1711139453119,-500.0,0.00021917,2]
[320077930,1711139453129,-2215.21,0.00021917,2]
[320077931,1711139453140,-500.0,0.00021917,2]
[320077932,1711139453150,-562.01201493,0.00021917,2]
[320077933,1711139453160,-6600.21,0.00021917,2]
[320077934,1711139453170,-2191.46,0.00021917,2]
[320077935,1711139453179,-500.0,0.00021917,2]
[320077936,1711139453189,-500.70473908,0.00021917,2]
[320077937,1711139453198,-500.0,0.00021917,2]
[320077938,1711139453208,-500.0,0.00021917,2]
[320077939,1711139453217,-500.0,0.00021917,2]
[320077940,1711139453227,-502.71116749,0.00021917,2]
[320077941,1711139453237,-500.0,0.00021917,2]
[320077942,1711139453246,-554.98,0.00021917,2]
[320077943,1711139453256,-774.68,0.00021917,2]
[320077944,1711139453266,-500.0,0.00021917,2]
[320077945,1711139453280,-500.0,0.00021917,2]
[320077946,1711139453290,-503.05019829,0.00021917,2]
[320077947,1711139453299,-500.0,0.00021917,2]
[320077948,1711139453309,-1458.26,0.00021917,2]
[320077949,1711139453319,-1303.22,0.00021917,2]
[320077950,1711139453333,-2227.68,0.00021917,2]
[320077951,1711139453342,-2823.43,0.00021917,2]
[320077952,1711139453354,-503.15159115,0.00021917,2]
[320077953,1711139453363,-500.0,0.00021917,2]
[320077954,1711139453373,-2025.48,0.00021917,2]
[320077955,1711139453383,-25829.61,0.00021917,2]
[320077956,1711139453393,-500.0,0.00021917,2]
[320077957,1711139453402,-500.0,0.00021917,2]
[320077958,1711139453412,-500.0,0.00021917,2]
[320077959,1711139453422,-1970.48,0.00021917,2]
[320077960,1711139453432,-1642.57,0.00021917,2]
[320077961,1711139453442,-738.39,0.00021917,2]
[320077962,1711139453451,-652.47,0.00021917,2]
[320077963,1711139453461,-1331.44,0.00021917,2]
[320077964,1711139453470,-719.23,0.00021917,2]
[320077965,1711139453481,-500.0,0.00021917,2]
[320077966,1711139453491,-2337.31,0.00021917,2]
[320077967,1711139453500,-509.32136341,0.00021917,2]
[320077968,1711139453510,-500.0,0.00021917,2]
[320077969,1711139453519,-500.0,0.00021917,2]
[320077970,1711139453529,-591.61,0.00021917,2]
[320077971,1711139453538,-500.0,0.00021917,2]
[320077972,1711139453548,-570.35,0.00021917,2]
[320077973,1711139453557,-500.0,0.00021917,2]
[320077974,1711139453566,-500.0,0.00021917,2]
[320077975,1711139453575,-500.0,0.00021917,2]
[320077976,1711139453587,-500.0,0.00021917,2]
[320077977,1711139453597,-682.95,0.00021917,2]
[320077978,1711139453606,-2947.01,0.00021917,2]
[320077979,1711139453616,-500.0,0.00021917,2]
[320077980,1711139453625,-3852.55,0.00021917,2]
[320077981,1711139453635,-4350.09,0.00021917,2]
[320077982,1711139453644,-838.77,0.00021917,2]
[320077983,1711139453653,-2668.36,0.00021917,2]
[320077984,1711139453662,-639.98,0.00021917,2]
[320077985,1711139453672,-501.84921723,0.00021917,2]
[320077986,1711139453681,-500.0,0.00021917,2]
[320077987,1711139453690,-500.0,0.00021917,2]
[320077988,1711139453700,-503.49809132,0.00021917,2]
[320077989,1711139453709,-502.9406265,0.00021917,2]
[320077990,1711139453718,-500.0,0.00021917,2]
[320077991,1711139453727,-500.0,0.00021917,2]
[320077992,1711139453737,-4723.97,0.00021917,2]
[320077993,1711139453745,-500.0,0.00021917,2]
[320077994,1711139453754,-500.0,0.00021917,2]
[320077995,1711139453764,-3043.68,0.00021917,2]
[320077996,1711139453774,-501.88749338,0.00021917,2]
[320077997,1711139453784,-2221.54,0.00021917,2]
[320077998,1711139453793,-500.0,0.00021917,2]
[320077999,1711139453802,-1569.77,0.00021917,2]
[320078000,1711139453811,-2236.55,0.00021917,2]
[320078001,1711139453822,-1119.7,0.00021917,2]
[320078002,1711139453834,-1294.51,0.00021917,2]
[320078003,1711139453843,-500.0,0.00021917,2]
[320078004,1711139453852,-3554.27,0.00021917,2]
[320078005,1711139453862,-500.0,0.00021917,2]
[320078006,1711139453872,-500.0,0.00021917,2]
[320078007,1711139453882,-503.00641519,0.00021917,2]
[320078008,1711139453893,-989.17,0.00021917,2]
[320078009,1711139453903,-8504.76,0.00021917,2]
[320078010,1711139453913,-507.83255526,0.00021917,2]
[320078011,1711139453925,-504.57313437,0.00021917,2]
[320078012,1711139453935,-1807.17,0.00021917,2]
[320078013,1711139453946,-500.0,0.00021917,2]
[320078014,1711139453955,-500.0,0.00021917,2]
[320078015,1711139453966,-2677.32,0.00021917,2]
[320078016,1711139453976,-787.39,0.00021917,2]
[320078017,1711139453987,-500.0,0.00021917,2]
[320078018,1711139453998,-3225.53,0.00021917,2]
[320078019,1711139454010,-623.11,0.00021917,2]
[320078020,1711139454022,-8524.41,0.00021917,2]
[320078021,1711139454032,-500.0,0.00021917,2]
[320078022,1711139454043,-2529.53,0.00021917,2]
[320078023,1711139454052,-500.0,0.00021917,2]
[320078024,1711139454061,-500.0,0.00021917,2]
[320078025,1711139454071,-9067.87,0.00021917,2]
[320078026,1711139454085,-267.7697525,0.00021917,2]
[320078027,1711139454095,-500.0,0.00021917,2]
[320078028,1711139454106,-500.0,0.00021917,2]
[320078029,1711139454115,-500.0,0.00021917,2]
[320078030,1711139454126,-500.0,0.00021917,2]
[320078031,1711139454135,-4392.39,0.00021917,2]
[320078032,1711139454145,-500.0,0.00021917,2]
[320078033,1711139454154,-1031.34,0.00021917,2]
[320078034,1711139454163,-500.85116538,0.00021917,2]
[320078035,1711139454172,-500.0,0.00021917,2]
[320078036,1711139454183,-1578.78,0.00021917,2]
[320078037,1711139454194,-4596.99,0.00021917,2]
[320078038,1711139454204,-1385.51,0.00021917,2]
[320078039,1711139454213,-500.0,0.00021917,2]
[320078040,1711139454223,-500.0,0.00021917,2]
[320078041,1711139454234,-500.0,0.00021917,2]
[320078042,1711139454244,-2954.56,0.00021917,2]
[320078043,1711139454255,-1011.99,0.00021917,2]
[320078044,1711139454266,-500.0,0.00021917,2]
[320078045,1711139454278,-949.88,0.00021917,2]
[320078046,1711139454288,-501.4153559,0.00021917,2]
[320078047,1711139454298,-3417.46,0.00021917,2]
[320078048,1711139454309,-5407.81,0.00021917,2]
[320078049,1711139454319,-500.0,0.00021917,2]
[320078050,1711139454332,-500.0,0.00021917,2]
[320078051,1711139454341,-3344.85,0.00021917,2]
[320078052,1711139454351,-500.0,0.00021917,2]
[320078053,1711139454360,-500.0,0.00021917,2]
[320078054,1711139454369,-500.0,0.00021917,2]
[320078055,1711139454378,-751.22,0.00021917,2]
[320078056,1711139454387,-3514.71,0.00021917,2]
[320078057,1711139454397,-1430.18,0.00021917,2]
[320078058,1711139454407,-1983.16,0.00021917,2]
[320078059,1711139454417,-2805.84,0.00021917,2]
[320078060,1711139454427,-500.0,0.00021917,2]
[320078061,1711139454437,-3105.09,0.00021917,2]
[320078062,1711139454446,-500.0,0.00021917,2]
[320078063,1711139454456,-11888.04,0.00021917,2]
[320078064,1711139454466,-500.0,0.00021917,2]
[320078065,1711139454476,-500.0,0.00021917,2]
[320078066,1711139454485,-500.0,0.00021917,2]
[320078067,1711139454496,-1092.09,0.00021917,2]
[320078068,1711139454506,-505.35779082,0.00021917,2]
[320078069,1711139454515,-500.0,0.00021917,2]
[320078070,1711139454526,-6093.5,0.00021917,2]
[320078071,1711139454536,-500.9147179,0.00021917,2]
[320078072,1711139454545,-1128.65,0.00021917,2]
[320078073,1711139454555,-500.0,0.00021917,2]
[320078074,1711139454564,-500.0,0.00021917,2]
[320078075,1711139454574,-2463.43,0.00021917,2]
[320078076,1711139454590,-500.0,0.00021917,2]
[320078077,1711139454600,-500.46185892,0.00021917,2]
[320078078,1711139454609,-16783.76,0.00021917,2]
[320078079,1711139454620,-2578.15,0.00021917,2]
[320078080,1711139454629,-3621.47,0.00021917,2]
[320078081,1711139454639,-500.0,0.00021917,2]
[320078082,1711139454649,-500.0,0.00021917,2]
[320078083,1711139454659,-17844.99,0.00021917,2]
[320078084,1711139454669,-1620.58,0.00021917,2]
[320078085,1711139454678,-500.0,0.00021917,2]
[320078086,1711139454688,-500.0,0.00021917,2]
[320078087,1711139454698,-500.97892279,0.00021917,2]
[320078088,1711139454708,-1030.69,0.00021917,2]
[320078089,1711139454717,-500.0,0.00021917,2]
[320078090,1711139454727,-500.0,0.00021917,2]
[320078091,1711139454736,-897.44,0.00021917,2]
[320078092,1711139454747,-2469.18,0.00021917,2]
[320078093,1711139454756,-501.87011691,0.00021917,2]
[320078094,1711139454767,-500.0,0.00021917,2]
[320078095,1711139454777,-2966.65,0.00021917,2]
[320078096,1711139454787,-500.0,0.00021917,2]
[320078097,1711139454797,-4434.74,0.00021917,2]
[320078098,1711139454807,-500.0,0.00021917,2]
[320078099,1711139454816,-503.42910114,0.00021917,2]
[320078100,1711139454826,-746.3,0.00021917,2]
[320078101,1711139454840,-2313.98,0.00021917,2]
[320078102,1711139454849,-502.86162854,0.00021917,2]
[320078103,1711139454859,-501.03197623,0.00021917,2]
[320078104,1711139454869,-1352.37,0.00021917,2]
[320078105,1711139454878,-859.54,0.00021917,2]
[320078106,1711139454888,-2833.08,0.00021917,2]
[320078107,1711139454898,-350.91569376,0.00021917,2]
[320078108,1711139454908,-500.0,0.00021917,2]
[320078109,1711139454917,-2024.04,0.00021917,2]
[320078110,1711139454927,-502.18916649,0.00021917,2]
[320078111,1711139454937,-5814.09,0.00021917,2]
[320078112,1711139454946,-1312.35,0.00021917,2]
[320078113,1711139454956,-2389.48,0.00021917,2]
[320078114,1711139454965,-500.0,0.00021917,2]
[320078115,1711139454974,-2421.81,0.00021917,2]
[320078116,1711139454984,-10482.87,0.00021917,2]
[320078117,1711139454997,-1745.38,0.00021917,2]
[320078118,1711139455006,-500.0,0.00021917,2]
[320078119,1711139455016,-1568.16,0.00021917,2]
[320078120,1711139455027,-7803.02,0.00021917,2]
[320078121,1711139455038,-500.0,0.00021917,2]
[320078122,1711139455047,-11587.27,0.00021917,2]
[320078123,1711139455056,-2463.37,0.00021917,2]
[320078124,1711139455065,-500.69407615,0.00021917,2]
[320078125,1711139455074,-2627.03,0.00021917,2]
[320078126,1711139455087,-500.0,0.00021917,2]
[320078127,1711139455096,-500.0,0.00021917,2]
[320078128,1711139455106,-23759.53,0.00021917,2]
[320078129,1711139455115,-500.0,0.00021917,2]
[320078130,1711139455125,-500.0,0.00021917,2]
[320078131,1711139455134,-3378.66,0.00021917,2]
[320078132,1711139455143,-1877.48,0.00021917,2]
[320078133,1711139455152,-500.0,0.00021917,2]
[320078134,1711139455161,-505.07782976,0.00021917,2]
[320078135,1711139455342,-1690.64,0.00021917,2]
[320078136,1711139455368,-500.0,0.00021917,2]
[320078137,1711139455377,-3284.57,0.00021917,2]
[320078138,1711139455386,-607.88,0.00021917,2]
[320078139,1711139455396,-500.0,0.00021917,2]
[320078140,1711139455405,-1522.43,0.00021917,2]
[320078141,1711139455414,-5110.8,0.00021917,2]
[320078142,1711139455424,-500.39471793,0.00021917,2]
[320078143,1711139455433,-3160.28,0.00021917,2]
[320078144,1711139455442,-1462.18,0.00021917,2]
[320078145,1711139455451,-500.0,0.00021917,2]
[320078146,1711139455461,-1045.31,0.00021917,2]
[320078147,1711139455470,-505.72564432,0.00021917,2]
[320078148,1711139455480,-500.0,0.00021917,2]
[320078149,1711139455490,-597.58,0.00021917,2]
[320078150,1711139455499,-500.0,0.00021917,2]
[320078151,1711139455509,-5812.38,0.00021917,2]
[320078152,1711139455518,-500.0,0.00021917,2]
[320078153,1711139455527,-500.0,0.00021917,2]
[320078154,1711139455537,-1485.3,0.00021917,2]
[320078155,1711139455546,-3855.88,0.00021917,2]
[320078156,1711139455555,-500.0,0.00021917,2]
[320078157,1711139455565,-500.0,0.00021917,2]
[320078158,1711139455574,-2611.48,0.00021917,2]
[320078159,1711139455585,-2037.66,0.00021917,2]
[320078160,1711139455595,-1334.45,0.00021917,2]
[320078161,1711139455604,-3267.38,0.00021917,2]
[320078162,1711139455613,-500.0,0.00021917,2]
[320078163,1711139455622,-1097.15,0.00021917,2]
[320078164,1711139455632,-500.0,0.00021917,2]
[320078165,1711139455641,-1185.7,0.00021917,2]
[320078166,1711139455650,-500.0,0.00021917,2]
[320078167,1711139455658,-1424.77,0.00021917,2]
[320078168,1711139455669,-500.0,0.00021917,2]
[320078169,1711139455679,-5743.09,0.00021917,2]
[320078170,1711139455688,-2468.12,0.00021917,2]
[320078171,1711139455698,-500.0,0.00021917,2]
[320078172,1711139455707,-500.0,0.00021917,2]
[320078173,1711139455716,-2313.54,0.00021917,2]
[320078174,1711139455726,-1233.57,0.00021917,2]
[320078175,1711139455736,-926.3,0.00021917,2]
[320078176,1711139455746,-500.0,0.00021917,2]
[320078177,1711139455755,-500.0,0.00021917,2]
[320078178,1711139455763,-2750.93,0.00021917,2]
[320078179,1711139455773,-500.0,0.00021917,2]
[320078180,1711139455783,-500.0,0.00021917,2]
[320078181,1711139455791,-621.21,0.00021917,2]
[320078182,1711139455801,-1786.82,0.00021917,2]
[320078183,1711139455811,-500.0,0.00021917,2]
[320078184,1711139455820,-7006.64,0.00021917,2]
[320078185,1711139455833,-567.35,0.00021917,2]
[320078186,1711139455843,-500.0,0.00021917,2]
[320078187,1711139455852,-1415.87,0.00021917,2]
[320078188,1711139455861,-1817.57,0.00021917,2]
[320078189,1711139455871,-500.0,0.00021917,2]
[320078190,1711139455880,-1149.14,0.00021917,2]
[320078191,1711139455890,-500.0,0.00021917,2]
[320078192,1711139455900,-555.45,0.00021917,2]
[320078193,1711139455910,-555.84,0.00021917,2]
[320078194,1711139455920,-10603.69,0.00021917,2]
[320078195,1711139455930,-576.22,0.00021917,2]
[320078196,1711139455940,-1459.87,0.00021917,2]
[320078197,1711139455950,-500.0,0.00021917,2]
[320078198,1711139455959,-2099.29,0.00021917,2]
[320078199,1711139455968,-500.0,0.00021917,2]
[320078200,1711139455978,-506.72,0.00021917,2]
[320078201,1711139455988,-920.16,0.00021917,2]
[320078202,1711139456000,-3034.56,0.00021917,2]
[320078203,1711139456010,-14390.08,0.00021917,2]
[320078204,1711139456019,-1857.54,0.00021917,2]
[320078205,1711139456029,-500.0,0.00021917,2]
[320078206,1711139456039,-500.0,0.00021917,2]
[320078207,1711139456048,-500.0,0.00021917,2]
[320078208,1711139456057,-500.0,0.00021917,2]
[320078209,1711139456069,-500.0,0.00021917,2]
[320078210,1711139456081,-5050.4,0.00021917,2]
[320078211,1711139456093,-2705.86,0.00021917,2]
[320078212,1711139456104,-500.0,0.00021917,2]
[320078213,1711139456115,-1046.47,0.00021917,2]
[320078214,1711139456126,-1588.05,0.00021917,2]
[320078215,1711139456138,-1718.36,0.00021917,2]
[320078216,1711139456149,-655.51,0.00021917,2]
[320078217,1711139456159,-500.0,0.00021917,2]
[320078218,1711139456170,-500.0,0.00021917,2]
[320078219,1711139456180,-500.0,0.00021917,2]
[320078220,1711139456192,-1935.33,0.00021917,2]
[320078221,1711139456202,-515.73,0.00021917,2]
[320078222,1711139456212,-500.0,0.00021917,2]
[320078223,1711139456222,-8034.62,0.00021917,2]
[320078224,1711139456232,-500.0,0.00021917,2]
[320078225,1711139456241,-500.0,0.00021917,2]
[320078226,1711139456251,-502.52466031,0.00021917,2]
[320078227,1711139456260,-5227.84,0.00021917,2]
[320078228,1711139456270,-2707.13,0.00021917,2]
[320078229,1711139456279,-604.56,0.00021917,2]
[320078230,1711139456289,-905.64,0.00021917,2]
[320078231,1711139456298,-610.8,0.00021917,2]
[320078232,1711139456307,-1065.96,0.00021917,2]
[320078233,1711139456316,-717.9,0.00021917,2]
[320078234,1711139456325,-1741.21,0.00021917,2]
[320078235,1711139456339,-741.69,0.00021917,2]
[320078236,1711139456349,-1327.11,0.00021917,2]
[320078237,1711139456358,-519.05,0.00021917,2]
[320078238,1711139456367,-1270.9,0.00021917,2]
[320078239,1711139456376,-500.0,0.00021917,2]
[320078240,1711139456386,-500.0,0.00021917,2]
[320078241,1711139456395,-500.0,0.00021917,2]
[320078242,1711139456404,-296.1,0.00021917,2]
[320078243,1711139456414,-3363.33,0.00021917,2]
[320078244,1711139456423,-7676.63,0.00021917,2]
[320078245,1711139456432,-500.0,0.00021917,2]
[320078246,1711139456442,-777.72,0.00021917,2]
[320078247,1711139456451,-5375.79,0.00021917,2]
[320078248,1711139456461,-4053.0,0.00021917,2]
[320078249,1711139456471,-562.54,0.00021917,2]
[320078250,1711139456480,-500.0,0.00021917,2]
[320078251,1711139456489,-500.0,0.00021917,2]
[320078252,1711139456498,-4020.58,0.00021917,2]
[320078253,1711139456507,-500.0,0.00021917,2]
[320078254,1711139456517,-500.0,0.00021917,2]
[320078255,1711139456525,-1025.95,0.00021917,2]
[320078256,1711139456535,-500.0,0.00021917,2]
[320078257,1711139456544,-1827.84,0.00021917,2]
[320078258,1711139456553,-500.0,0.00021917,2]
[320078259,1711139456575,-2575.29,0.00021917,2]
[320078260,1711139456593,-538.99,0.00021917,2]
[320078261,1711139456614,-1116.34,0.00021917,2]
[320078262,1711139456634,-1093.02,0.00021917,2]
[320078263,1711139456650,-1732.91,0.00021917,2]
[320078264,1711139456666,-570.61,0.00021917,2]
[320078265,1711139456686,-8006.94,0.00021917,2]
[320078266,1711139456703,-500.0,0.00021917,2]
[320078267,1711139456722,-1372.55,0.00021918,10]
[320078268,1711139456738,-250.0,0.00021918,2]
[320078269,1711139456757,-1000.0,0.00021918,3]
[320078270,1711139456778,-7750.12,0.00021918,2]
[320078271,1711139456792,-1000.0,0.00021918,2]
[320078272,1711139456809,-689.0,0.00022,3]
[320078273,1711139456826,-780.27085357,0.00022,2]
[320078274,1711139456841,-1000.0,0.00022,2]
[320078275,1711139456856,-643.74221686,0.00022,2]
[320078276,1711139456871,-155.0,0.00022,2]
[320078277,1711139456886,-1000.0,0.00022008,2]
[320078278,1711139456901,-1541.85945812,0.00022032,2]
[320078279,1711139456916,-1000.0,0.00022097,2]
[320078280,1711139456931,-396.72,0.000221,2]
[320078281,1711139456947,-1334.8792867,0.00022135,2]
[320078282,1711139456961,-171.5974988,0.00022171,2]
[320078283,1711139456975,-782.79463902,0.00022171,2]
[320078284,1711139456990,-2003.68432842,0.00022171,2]
[320078285,1711139457005,-127307.4343771,0.00022176,2]
[320078286,1711139457021,-8311.867989,0.00022176,2]
[320078287,1711139457036,-2765.3699691,0.00022176,2]
[320078288,1711139457050,-1000.0,0.00022187,2]
[320078289,1711139457065,-403.73128084,0.00022191,2]
[320078290,1711139457081,-500.0,0.00022191,2]
[320078291,1711139457096,-500.0,0.00022191,2]
[320078292,1711139457117,-500.0,0.00022191,2]
[320078293,1711139457132,-500.0,0.00022191,2]
[320078294,1711139457147,-500.0,0.00022191,2]
[320078295,1711139457162,-500.0,0.00022191,2]
[320078296,1711139457177,-500.0,0.00022191,2]
[320078297,1711139457192,-500.0,0.00022191,2]
[320078298,1711139457208,-500.0,0.00022191,2]
[320078299,1711139457223,-500.0,0.00022191,2]
[320078300,1711139457238,-500.0,0.00022191,2]
[320078301,1711139457254,-501.10460913,0.00022191,2]
[320078302,1711139457269,-500.0,0.00022191,2]
[320078303,1711139457284,-500.0,0.00022191,2]
[320078304,1711139457299,-500.0,0.00022191,2]
[320078305,1711139457315,-501.5217871,0.00022191,2]
[320078306,1711139457331,-500.0,0.00022191,2]
[320078307,1711139457346,-500.0,0.00022191,2]
[320078308,1711139457361,-503.10368246,0.00022191,2]
[320078309,1711139457377,-500.0,0.00022191,2]
[320078310,1711139457392,-500.0,0.00022191,2]
[320078311,1711139457407,-500.0,0.00022191,2]
[320078312,1711139457423,-500.0,0.00022191,2]
[320078313,1711139457438,-500.0,0.00022191,2]
[320078314,1711139457453,-500.0,0.00022191,2]
[320078315,1711139457468,-500.0,0.00022191,2]
[320078316,1711139457484,-500.0,0.00022191,2]
[320078317,1711139457498,-500.0,0.00022191,2]
[320078318,1711139457513,-500.0,0.00022191,2]
[320078319,1711139457529,-500.0,0.00022191,2]
[320078320,1711139457543,-500.0,0.00022191,2]
[320078321,1711139457558,-500.0,0.00022191,2]
[320078322,1711139457574,-500.0,0.00022191,2]
[320078323,1711139457591,-500.0,0.00022191,2]
[320078324,1711139457607,-500.0,0.00022191,2]
[320078325,1711139457623,-500.0,0.00022191,2]
[320078326,1711139457638,-500.0,0.00022191,2]
[320078327,1711139457654,-500.0,0.00022191,2]
[320078328,1711139457669,-500.0,0.00022191,2]
[320078329,1711139457685,-500.0,0.00022191,2]
[320078330,1711139457701,-500.0,0.00022191,2]
[320078331,1711139457715,-500.0,0.00022191,2]
[320078332,1711139457731,-500.0,0.00022191,2]
[320078333,1711139457746,-500.0,0.00022191,2]
[320078334,1711139457761,-500.0,0.00022191,2]
[320078335,1711139457776,-500.0,0.00022191,2]
[320078336,1711139457791,-174.83934133,0.00022191,2]
[320078337,1711139457806,-500.0,0.00022191,2]
[320078338,1711139457821,-500.0,0.00022191,2]
[320078339,1711139457836,-500.0,0.00022191,2]
[320078340,1711139457853,-500.0,0.00022191,2]
[320078341,1711139457868,-898.44,0.00022191,2]
[320078342,1711139457883,-500.0,0.00022191,2]
[320078343,1711139457898,-500.73498634,0.00022191,2]
[320078344,1711139457913,-500.0,0.00022191,2]
[320078345,1711139457927,-500.0,0.00022191,2]